[Event "British KO-ch Pre 2019"]
[Site "London"]
[Date "2019.11.30"]
[Round "3.1"]
[White "Haria, Ravi"]
[Black "Horton, Andrew P"]
[Result "0-1"]
[ECO "D79"]
[WhiteElo "2451"]
[BlackElo "2378"]
[Annotator "ChessBase"]
[PlyCount "180"]
[EventDate "2019.11.30"]
[EventType "k.o."]
[EventCountry "ENG"]
[SourceTitle "playchess.com"]
[Source "ChessBase"]
[SourceQuality "1"]
[TimeControl "600+5"]

1. Nf3 {[%emt 0:00:00]} Nf6 {[%emt 0:00:00]} 2. g3 {[%emt 0:00:00]} g6 {[%emt 0:00:03]} 3. Bg2 {[%emt 0:00:00]} c5 {[%emt 0:00:10]} 4. O-O {[%emt 0:00:04]} Bg7 {[%emt 0:00:03]} 5. c3 {[%emt 0:00:01]} d5 {[%emt 0:01:42]} 6. d4 {[%emt 0:00:01]} cxd4 {[%emt 0:00:02]} 7. cxd4 {[%emt 0:00:02]} O-O {[%emt 0:01:28]} 8. Nc3 {[%emt 0:00:01]} Nc6 {[%emt 0:00:55]} 9. Ne5 {[%emt 0:00:01]} e6 {[%emt 0:00:58]} 10. Nxc6 {[%emt 0:00:03]} bxc6 {[%emt 0:00:00]} 11. Bf4 {[%emt 0:00:01]} Nd7 {[%emt 0:00:16]} 12. Na4 {[%emt 0:01:16]} e5 {[%emt 0:00:17]} 13. dxe5 {[%emt 0:00:17]} Nxe5 {[%emt 0:00:02]} 14. Rc1 {[%emt 0:00:38]} Bd7 {[%emt 0:00:53]} 15. b3 {[%emt 0:00:21]} Rc8 {[%emt 0:00:08]} 16. Qd2 {[%emt 0:00:14]} Qe7 {[%emt 0:00:39]} 17. Be3 {[%emt 0:00:21]} Rfe8 {[%emt 0:00:36]} 18. Bxa7 {[%emt 0:00:34]} Ra8 {[%emt 0:00:20]} 19. Bc5 {[%emt 0:00:40]} Qd8 {[%emt 0:00:11]} 20. Nb6 {[%emt 0:00:29]} Ra6 {[%emt 0:00:09]} 21. Nxd7 {[%emt 0:00:46]} Nxd7 {[%emt 0:00:08]} 22. Be3 {[%emt 0:00:47]} Qa8 {[%emt 0:00:03]} 23. Rc2 {[%emt 0:00:15]} Nf6 {[%emt 0:00:17]} 24. Bd4 {[%emt 0:00:27]} Ne4 {[%emt 0:00:41]} 25. Bxe4 {[%emt 0:00:28]} Bxd4 {[%emt 0:00:10]} 26. Qxd4 {[%emt 0:01:21]} Rxe4 {[%emt 0:00:03]} 27. Qd2 {[%emt 0:00:16]} c5 {[%emt 0:01:03]} 28. Rd1 {[%emt 0:00:52]} Rd4 {[%emt 0:00:10]} 29. Qe1 {[%emt 0:00:47]} Rxd1 {[%emt 0:00:11]} 30. Qxd1 {[%emt 0:00:03]} Rxa2 {[%emt 0:00:11]} 31. Rxc5 {[%emt 0:00:24]} Ra1 {[%emt 0:00:29]} 32. Rc1 {[%emt 0:00:11]} Rxc1 {[%emt 0:00:12]} 33. Qxc1 {[%emt 0:00:01]} Qa2 {[%emt 0:00:03]} 34. Qc8+ {[%emt 0:00:07]} Kg7 {[%emt 0:00:02]} 35. Qc3+ {[%emt 0:00:01]} Kg8 {[%emt 0:00:01]} 36. Qd3 {[%emt 0:00:17]} d4 {[%emt 0:00:07]} 37. Kg2 {[%emt 0:00:04]} Qa8+ {[%emt 0:00:05]} 38. Qf3 {[%emt 0:00:03]} Qa3 {[%emt 0:00:07]} 39. Qd5 {[%emt 0:00:03]} Qb2 {[%emt 0:00:05]} 40. Qc4 {[%emt 0:00:04]} h5 {[%emt 0:00:07]} 41. h4 {[%emt 0:00:03]} Kg7 {[%emt 0:00:05]} 42. Kf3 {[%emt 0:00:16]} Kg8 {[%emt 0:00:09]} 43. Ke4 {[%emt 0:00:18]} Kf8 {[%emt 0:00:06]} 44. b4 {[%emt 0:00:14]} d3 {[%emt 0:00:06]} 45. Kxd3 {[%emt 0:00:15]} Kg8 {[%emt 0:00:01]} 46. Qc8+ {[%emt 0:00:02]} Kh7 {[%emt 0:00:02]} 47. Qc3 {[%emt 0:00:04]} Qb1+ {[%emt 0:00:02]} 48. Ke3 {[%emt 0:00:10]} Qf5 {[%emt 0:00:01]} 49. Qc4 {[%emt 0:00:11]} Qe5+ {[%emt 0:00:20]} 50. Kf3 {[%emt 0:00:05]} Qf5+ {[%emt 0:00:02]} 51. Qf4 {[%emt 0:00:02]} Qd5+ {[%emt 0:00:02]} 52. Qe4 {[%emt 0:00:07]} Qb3+ {[%emt 0:00:02]} 53. Kg2 {[%emt 0:00:01]} Kg8 {[%emt 0:00:02]} 54. Qd4 {[%emt 0:00:04]} Qb1 {[%emt 0:00:04]} 55. f3 {[%emt 0:00:13]} Qe1 {[%emt 0:00:04]} 56. Qc4 {[%emt 0:00:03]} Qb1 {[%emt 0:00:16]} 57. b5 {[%emt 0:00:02]} Qb2 {[%emt 0:00:03]} 58. Kf2 {[%emt 0:00:03]} Qb1 {[%emt 0:00:03]} 59. Qc5 {[%emt 0:00:03]} Kh7 {[%emt 0:00:04]} 60. b6 {[%emt 0:00:01]} Qb2 {[%emt 0:00:03]} 61. Qc7 {[%emt 0:00:10]} Qd4+ {[%emt 0:00:01]} 62. Kg2 {[%emt 0:00:02]} Qe3 {[%emt 0:00:05]} 63. Qxf7+ {[%emt 0:00:16]} Kh8 {[%emt 0:00:03]} 64. Qf6+ {[%emt 0:00:02]} Kh7 {[%emt 0:00:02]} 65. Qf7+ {[%emt 0:00:09]} Kh8 {[%emt 0:00:00]} 66. Qf8+ {[%emt 0:00:04]} Kh7 {[%emt 0:00:01]} 67. Kf1 {[%emt 0:00:07]} Qxb6 {[%emt 0:00:06]} 68. Qf7+ {[%emt 0:00:03]} Kh8 {[%emt 0:00:01]} 69. Qf8+ {[%emt 0:00:00]} Kh7 {[%emt 0:00:00]} 70. Qf7+ {[%emt 0:00:02]} Kh8 {[%emt 0:00:01]} 71. Qc4 {[%emt 0:00:10]} Qe3 {[%emt 0:00:05]} 72. Qd3 {[%emt 0:00:01]} Qe6 {[%emt 0:00:04]} 73. Kf2 {[%emt 0:00:03]} Kh7 {[%emt 0:00:01]} 74. e4 {[%emt 0:00:06]} Qh3 {[%emt 0:00:04]} 75. Qd6 {[%emt 0:00:02]} Qh2+ {[%emt 0:00:03]} 76. Ke3 {[%emt 0:00:03]} Qg1+ {[%emt 0:00:03]} 77. Kf4 {[%emt 0:00:19]} Qc1+ {[%emt 0:00:02]} 78. Ke5 {[%emt 0:00:05]} Qc3+ {[%emt 0:00:04]} 79. Kf4 {[%emt 0:00:03]} Qc1+ {[%emt 0:00:01]} 80. Ke5 {[%emt 0:00:02]} Qc3+ {[%emt 0:00:02]} 81. Ke6 {[%emt 0:00:07]} Qxf3 {[%emt 0:00:06]} 82. Qc7+ {[%emt 0:00:06]} Kg8 {[%emt 0:00:04]} 83. Qd8+ {[%emt 0:00:03]} Kg7 {[%emt 0:00:07]} 84. Qd4+ {[%emt 0:00:08]} Kg8 {[%emt 0:00:02]} 85. Qd8+ {[%emt 0:00:05]} Kg7 {[%emt 0:00:02]} 86. Qe7+ {[%emt 0:00:02]} Kg8 {[%emt 0:00:01]} 87. Qg5 {[%emt 0:00:09]} Qxe4+ {[%emt 0:00:08]} 88. Kf6 {[%emt 0:00:02]} Qc6+ {[%emt 0:00:22]} 89. Ke5 {[%emt 0:00:07]} Qc5+ {[%emt 0:00:04]} 90. Kf6 {[%emt 0:00:03]} Qd6# 0-1

[Event "British KO-ch Pre 2019"]
[Site "London"]
[Date "2019.11.30"]
[Round "3.2"]
[White "Harvey, Marcus R"]
[Black "Merry, Alan B"]
[Result "1-0"]
[ECO "A30"]
[WhiteElo "2405"]
[BlackElo "2426"]
[Annotator "NA"]
[PlyCount "73"]
[EventDate "2019.11.30"]
[EventType "k.o."]
[EventCountry "ENG"]
[SourceTitle "playchess.com"]
[Source "ChessBase"]
[SourceQuality "1"]
[TimeControl "600+5"]

1. Nf3 {[%emt 0:00:00]} b6 {[%emt 0:00:00]} 2. b3 {[%emt 0:00:00]} Bb7 {[%emt 0:00:00]} 3. Bb2 {[%emt 0:00:00]} Nf6 {[%emt 0:00:00]} 4. e3 {[%emt 0:00:00]} g6 {[%emt 0:00:00]} 5. Be2 {[%emt 0:00:01]} Bg7 {[%emt 0:00:01]} 6. O-O {[%emt 0:00:02]} O-O {[%emt 0:00:02]} 7. c4 {[%emt 0:00:00]} c5 {[%emt 0:00:04]} 8. d4 {[%emt 0:00:01]} cxd4 {[%emt 0:00:05]} 9. Nxd4 {[%emt 0:00:02]} d6 {[%emt 0:00:03]} 10. Bf3 {[%emt 0:00:05]} Qc7 {[%emt 0:00:32]} 11. Nc3 {[%emt 0:00:05]} a6 {[%emt 0:00:17]} 12. Nd5 {[%emt 0:00:17]} Nxd5 {[%emt 0:00:14]} 13. cxd5 {[%emt 0:00:01]} Nd7 {[%emt 0:00:17]} 14. Rc1 {[%emt 0:00:00]} Qd8 {[%emt 0:00:47]} 15. Nc6 {[%emt 0:00:01]} Bxc6 {[%emt 0:00:34]} 16. Bxg7 {[%emt 0:00:03]} Kxg7 {[%emt 0:00:29]} 17. dxc6 {[%emt 0:00:02]} Ne5 {[%emt 0:00:04]} 18. c7 {[%emt 0:00:20]} Nxf3+ {[%emt 0:00:03]} 19. Qxf3 {[%emt 0:00:17]} Qc8 {[%emt 0:00:59]} 20. Qe4 {[%emt 0:00:11]} e5 {[%emt 0:01:16]} 21. Rfd1 {[%emt 0:00:29]} Qe6 {[%emt 0:02:06]} 22. Rc6 {[%emt 0:00:32]} Rac8 {[%emt 0:00:42]} 23. Rcxd6 {[%emt 0:00:58]} Qe7 {[%emt 0:00:06]} 24. Rd7 {[%emt 0:00:21]} Qc5 {[%emt 0:00:26]} 25. Qb7 {[%emt 0:00:12]} a5 {[%emt 0:00:23]} 26. h3 {[%emt 0:00:04]} Qc2 {[%emt 0:00:24]} 27. R1d2 {[%emt 0:00:19]} Qc5 {[%emt 0:00:12]} 28. Kh2 {[%emt 0:00:57]} h5 {[%emt 0:00:04]} 29. R2d6 {[%emt 0:00:40]} Qc2 {[%emt 0:00:33]} 30. Qxb6 {[%emt 0:00:02]} Qxf2 {[%emt 0:00:04]} 31. Rxg6+ {[%emt 0:00:02]} Kh7 {[%emt 0:00:10]} 32. Rh6+ {[%emt 0:00:03]} Kg8 {[%emt 0:00:01]} 33. Qd6 {[%emt 0:00:41]} Qxe3 {[%emt 0:00:18]} 34. Qf6 {[%emt 0:00:02]} Qf4+ {[%emt 0:00:16]} 35. Qxf4 {[%emt 0:00:01]} exf4 {[%emt 0:00:01]} 36. Rxh5 {[%emt 0:00:02]} Rfe8 {[%emt 0:00:03]} 37. Rxa5 {[%emt 0:00:04]} 1-0

[Event "British KO-ch Pre 2019"]
[Site "London"]
[Date "2019.11.30"]
[Round "3.3"]
[White "Golding, Alex"]
[Black "Fernandez, Daniel Howard"]
[Result "0-1"]
[ECO "B20"]
[WhiteElo "2306"]
[BlackElo "2444"]
[Annotator "NA"]
[PlyCount "92"]
[EventDate "2019.11.30"]
[EventType "k.o."]
[EventCountry "ENG"]
[SourceTitle "playchess.com"]
[Source "ChessBase"]
[SourceQuality "1"]
[TimeControl "600+5"]

1. e4 {[%emt 0:00:04]} c5 {[%emt 0:00:01]} 2. c4 {[%emt 0:00:02]} g6 {[%emt 0:00:07]} 3. Nc3 {[%emt 0:00:01]} d6 {[%emt 0:00:10]} 4. Nge2 {[%emt 0:00:01]} Bh6 {[%emt 0:00:04]} 5. g3 {[%emt 0:00:26]} e5 {[%emt 0:00:06]} 6. Bg2 {[%emt 0:00:05]} Nc6 {[%emt 0:00:02]} 7. Nd5 {[%emt 0:00:23]} Nge7 {[%emt 0:00:20]} 8. d3 {[%emt 0:00:49]} Bxc1 {[%emt 0:00:04]} 9. Qxc1 {[%emt 0:00:04]} Nxd5 {[%emt 0:00:06]} 10. cxd5 {[%emt 0:00:07]} Nb4 {[%emt 0:00:48]} 11. Qc3 {[%emt 0:00:14]} Qe7 {[%emt 0:00:06]} 12. O-O {[%emt 0:00:13]} O-O {[%emt 0:00:04]} 13. a3 {[%emt 0:00:26]} Na6 {[%emt 0:00:03]} 14. f4 {[%emt 0:00:13]} Bg4 {[%emt 0:00:05]} 15. Bf3 {[%emt 0:00:04]} Bxf3 {[%emt 0:00:19]} 16. Rxf3 {[%emt 0:00:02]} f5 {[%emt 0:00:01]} 17. fxe5 {[%emt 0:00:07]} Qxe5 {[%emt 0:00:13]} 18. Qxe5 {[%emt 0:00:02]} dxe5 {[%emt 0:00:02]} 19. Nc3 {[%emt 0:00:20]} fxe4 {[%emt 0:00:38]} 20. Rxf8+ {[%emt 0:00:02]} Kxf8 {[%emt 0:00:15]} 21. dxe4 {[%emt 0:00:02]} Nc7 {[%emt 0:00:05]} 22. Rd1 {[%emt 0:01:35]} Ne8 {[%emt 0:00:04]} 23. Kf2 {[%emt 0:00:18]} Nd6 {[%emt 0:00:03]} 24. Ke2 {[%emt 0:00:44]} Ke7 {[%emt 0:00:02]} 25. Rf1 {[%emt 0:00:03]} b5 {[%emt 0:00:04]} 26. Kd3 {[%emt 0:00:12]} a5 {[%emt 0:00:08]} 27. Ra1 {[%emt 0:00:50]} Rf8 {[%emt 0:00:08]} 28. Ke2 {[%emt 0:00:34]} g5 {[%emt 0:00:26]} 29. h3 {[%emt 0:00:23]} h5 {[%emt 0:00:03]} 30. b4 {[%emt 0:02:22]} cxb4 {[%emt 0:01:19]} 31. axb4 {[%emt 0:00:03]} a4 {[%emt 0:00:02]} 32. g4 {[%emt 0:00:45]} hxg4 {[%emt 0:00:06]} 33. hxg4 {[%emt 0:00:03]} Rc8 {[%emt 0:00:40]} 34. Kd3 {[%emt 0:00:14]} Rh8 {[%emt 0:00:02]} 35. Nxb5 {[%emt 0:00:35]} Rh3+ {[%emt 0:00:04]} 36. Kd2 {[%emt 0:00:01]} Nxb5 {[%emt 0:01:05]} 37. Rxa4 {[%emt 0:00:01]} Ra3 {[%emt 0:00:02]} 38. Rxa3 {[%emt 0:00:20]} Nxa3 {[%emt 0:00:04]} 39. Kc3 {[%emt 0:00:04]} Kd7 {[%emt 0:00:04]} 40. Kb3 {[%emt 0:00:04]} Nb5 {[%emt 0:00:02]} 41. Ka4 {[%emt 0:00:15]} Nc3+ {[%emt 0:00:12]} 42. Ka5 {[%emt 0:00:02]} Nxe4 {[%emt 0:00:27]} 43. b5 {[%emt 0:00:01]} Nd6 {[%emt 0:00:04]} 44. b6 {[%emt 0:00:05]} Nc4+ {[%emt 0:00:05]} 45. Kb5 {[%emt 0:00:06]} Nxb6 {[%emt 0:00:03]} 46. Kc5 {[%emt 0:00:02]} Nc8 {[%emt 0:00:18]} 0-1

[Event "British KO-ch Pre 2019"]
[Site "London"]
[Date "2019.11.30"]
[Round "3.4"]
[White "Clarke, Brandon G I"]
[Black "Willow, Jonah B"]
[Result "1/2-1/2"]
[ECO "B36"]
[WhiteElo "2431"]
[BlackElo "2345"]
[Annotator "NA"]
[PlyCount "179"]
[EventDate "2019.11.30"]
[EventType "k.o."]
[EventCountry "ENG"]
[SourceTitle "playchess.com"]
[Source "ChessBase"]
[SourceQuality "1"]
[TimeControl "600+5"]

1. e4 {[%emt 0:00:00]} c5 {[%emt 0:00:00]} 2. Nf3 {[%emt 0:00:00]} Nc6 {[%emt 0:00:00]} 3. d4 {[%emt 0:00:00]} cxd4 {[%emt 0:00:00]} 4. Nxd4 {[%emt 0:00:01]} g6 {[%emt 0:00:00]} 5. c4 {[%emt 0:00:23]} Nf6 {[%emt 0:00:01]} 6. Nc3 {[%emt 0:00:02]} d6 {[%emt 0:00:01]} 7. f3 {[%emt 0:00:07]} Nxd4 {[%emt 0:00:02]} 8. Qxd4 {[%emt 0:00:02]} Bg7 {[%emt 0:00:01]} 9. Be3 {[%emt 0:00:02]} O-O {[%emt 0:00:02]} 10. Qd2 {[%emt 0:00:01]} a5 {[%emt 0:00:02]} 11. Na4 {[%emt 0:00:31]} Nd7 {[%emt 0:01:11]} 12. O-O-O {[%emt 0:00:17]} Qc7 {[%emt 0:00:13]} 13. Kb1 {[%emt 0:00:08]} b6 {[%emt 0:00:46]} 14. h4 {[%emt 0:01:18]} Ba6 {[%emt 0:00:58]} 15. Rc1 {[%emt 0:00:00]} Nc5 {[%emt 0:00:11]} 16. Nc3 {[%emt 0:00:09]} h5 {[%emt 0:01:20]} 17. g4 {[%emt 0:00:12]} hxg4 {[%emt 0:00:03]} 18. h5 {[%emt 0:00:06]} e6 {[%emt 0:00:18]} 19. Bh6 {[%emt 0:01:22]} Qe7 {[%emt 0:00:19]} 20. Bxg7 {[%emt 0:01:33]} Kxg7 {[%emt 0:00:02]} 21. Qd4+ {[%emt 0:00:02]} e5 {[%emt 0:00:11]} 22. Qe3 {[%emt 0:00:10]} Bb7 {[%emt 0:00:33]} 23. fxg4 {[%emt 0:00:13]} Rh8 {[%emt 0:00:10]} 24. Be2 {[%emt 0:00:29]} Ne6 {[%emt 0:00:04]} 25. Na4 {[%emt 0:01:38]} Rab8 {[%emt 0:00:18]} 26. hxg6 {[%emt 0:00:31]} fxg6 {[%emt 0:00:09]} 27. Rxh8 {[%emt 0:00:03]} Rxh8 {[%emt 0:00:03]} 28. Nxb6 {[%emt 0:00:08]} Qg5 {[%emt 0:00:36]} 29. Qxg5 {[%emt 0:01:22]} Bxe4+ {[%emt 0:00:01]} 30. Ka1 Nxg5 {[%emt 0:00:02]} 31. c5 {[%emt 0:00:26]} dxc5 {[%emt 0:00:07]} 32. Nd7 {[%emt 0:00:01]} Rh2 {[%emt 0:00:29]} 33. Bc4 {[%emt 0:00:12]} Nf3 {[%emt 0:00:42]} 34. Nxc5 {[%emt 0:00:07]} Bc6 {[%emt 0:00:14]} 35. a4 {[%emt 0:00:25]} Nd4 {[%emt 0:00:17]} 36. Ka2 {[%emt 0:00:23]} Kf6 {[%emt 0:00:28]} 37. Ba6 {[%emt 0:00:24]} Bd5+ {[%emt 0:00:04]} 38. Bc4 {[%emt 0:00:02]} Bc6 {[%emt 0:00:12]} 39. Ba6 {[%emt 0:00:01]} Nc2 {[%emt 0:00:23]} 40. Bb7 {[%emt 0:00:13]} Nb4+ {[%emt 0:00:05]} 41. Kb3 {[%emt 0:00:05]} Be8 {[%emt 0:00:38]} 42. Ne4+ {[%emt 0:00:05]} Kg7 {[%emt 0:00:24]} 43. Kc4 {[%emt 0:00:16]} Rxb2 {[%emt 0:00:24]} 44. Nd6 {[%emt 0:00:03]} Bxa4 {[%emt 0:00:17]} 45. Be4 {[%emt 0:00:04]} Bd7 {[%emt 0:00:05]} 46. g5 {[%emt 0:00:03]} Rd2 {[%emt 0:00:11]} 47. Nb5 {[%emt 0:00:09]} Be6+ {[%emt 0:00:11]} 48. Kc5 {[%emt 0:00:02]} Rd8 {[%emt 0:00:25]} 49. Kb6 {[%emt 0:00:01]} a4 {[%emt 0:00:09]} 50. Ka5 {[%emt 0:00:07]} Na2 {[%emt 0:00:12]} 51. Rc6 {[%emt 0:00:06]} Bf7 {[%emt 0:00:11]} 52. Rc7 {[%emt 0:00:01]} Kf8 {[%emt 0:00:17]} 53. Kxa4 {[%emt 0:00:05]} Be8 {[%emt 0:00:06]} 54. Ka5 {[%emt 0:00:07]} Rd7 {[%emt 0:00:15]} 55. Rc5 {[%emt 0:00:08]} Re7 {[%emt 0:00:03]} 56. Nd6 {[%emt 0:00:03]} Re6 {[%emt 0:00:05]} 57. Nb7 {[%emt 0:00:09]} Ke7 {[%emt 0:00:05]} 58. Rc7+ {[%emt 0:00:01]} Kf8 {[%emt 0:00:01]} 59. Nc5 {[%emt 0:00:01]} Re7 {[%emt 0:00:02]} 60. Rc8 {[%emt 0:00:01]} Kg7 {[%emt 0:00:03]} 61. Nd3 {[%emt 0:00:14]} Bf7 {[%emt 0:00:08]} 62. Rc5 {[%emt 0:00:05]} Ra7+ {[%emt 0:00:08]} 63. Kb6 {[%emt 0:00:01]} Ra4 {[%emt 0:00:02]} 64. Rxe5 {[%emt 0:00:08]} Nc3 {[%emt 0:00:01]} 65. Bc6 {[%emt 0:00:03]} Ra1 {[%emt 0:00:06]} 66. Kc7 {[%emt 0:00:11]} Rd1 {[%emt 0:00:10]} 67. Nc5 {[%emt 0:00:03]} Kf8 {[%emt 0:00:03]} 68. Nd7+ {[%emt 0:00:02]} Kg7 {[%emt 0:00:02]} 69. Nf6 {[%emt 0:00:09]} Rc1 {[%emt 0:00:07]} 70. Kd6 {[%emt 0:00:04]} Rd1+ {[%emt 0:00:02]} 71. Ke7 {[%emt 0:00:01]} Rd2 {[%emt 0:00:10]} 72. Rc5 {[%emt 0:00:04]} Re2+ {[%emt 0:00:02]} 73. Kd8 {[%emt 0:00:04]} Rd2+ {[%emt 0:00:04]} 74. Ke7 {[%emt 0:00:07]} Re2+ {[%emt 0:00:01]} 75. Kd6 {[%emt 0:00:09]} Rd2+ {[%emt 0:00:06]} 76. Ke5 {[%emt 0:00:02]} Re2+ {[%emt 0:00:04]} 77. Kd4 {[%emt 0:00:07]} Nd1 {[%emt 0:00:03]} 78. Bb5 {[%emt 0:00:07]} Rg2 {[%emt 0:00:06]} 79. Ne4 {[%emt 0:00:05]} Rg4 {[%emt 0:00:12]} 80. Ke5 {[%emt 0:00:06]} Ne3 {[%emt 0:00:04]} 81. Rc7 {[%emt 0:00:02]} Nd5 {[%emt 0:00:13]} 82. Rxf7+ {[%emt 0:00:08]} Kxf7 {[%emt 0:00:03]} 83. Kxd5 {[%emt 0:00:01]} Ke7 {[%emt 0:00:06]} 84. Ke5 {[%emt 0:00:02]} Rg1 {[%emt 0:00:04]} 85. Bd3 {[%emt 0:00:07]} Ra1 {[%emt 0:00:03]} 86. Nc3 {[%emt 0:00:04]} Kf7 {[%emt 0:00:02]} 87. Be4 {[%emt 0:00:08]} Ra5+ {[%emt 0:00:03]} 88. Bd5+ {[%emt 0:00:04]} Kg7 {[%emt 0:00:02]} 89. Ne4 {[%emt 0:00:02]} Ra1 {[%emt 0:00:02]} 90. Be6 {[%emt 0:00:07]} 1/2-1/2

[Event "British KO-ch Pre 2019"]
[Site "London"]
[Date "2019.11.30"]
[Round "3.5"]
[White "McPhillips, Joseph"]
[Black "Wadsworth, Matthew J"]
[Result "0-1"]
[ECO "B47"]
[WhiteElo "2434"]
[BlackElo "2401"]
[Annotator "NA"]
[PlyCount "48"]
[EventDate "2019.11.30"]
[EventType "k.o."]
[EventCountry "ENG"]
[SourceTitle "playchess.com"]
[Source "ChessBase"]
[SourceQuality "1"]
[TimeControl "600+5"]

1. e4 {[%emt 0:00:00]} c5 {[%emt 0:00:00]} 2. Nf3 {[%emt 0:00:00]} e6 {[%emt 0:00:00]} 3. d4 {[%emt 0:00:00]} cxd4 {[%emt 0:00:02]} 4. Nxd4 {[%emt 0:00:00]} Nc6 {[%emt 0:00:01]} 5. Nc3 {[%emt 0:00:02]} Qc7 {[%emt 0:00:02]} 6. g3 {[%emt 0:00:12]} a6 {[%emt 0:00:05]} 7. Bg2 {[%emt 0:00:10]} h5 {[%emt 0:00:02]} 8. h3 {[%emt 0:00:04]} Nf6 {[%emt 0:00:48]} 9. Nb3 {[%emt 0:00:55]} h4 {[%emt 0:00:51]} 10. Bf4 {[%emt 0:00:25]} Ne5 {[%emt 0:01:05]} 11. Qd4 {[%emt 0:00:09]} d6 {[%emt 0:00:26]} 12. O-O-O {[%emt 0:00:08]} b5 {[%emt 0:00:42]} 13. Bg5 {[%emt 0:01:29]} Bb7 {[%emt 0:00:35]} 14. Bxh4 {[%emt 0:00:16]} Rc8 {[%emt 0:00:28]} 15. f4 {[%emt 0:00:38]} Nc4 {[%emt 0:00:34]} 16. Qd3 {[%emt 0:00:57]} b4 {[%emt 0:00:51]} 17. Ne2 {[%emt 0:00:11]} Ne3 {[%emt 0:00:20]} 18. Bxf6 {[%emt 0:01:16]} Qxc2+ {[%emt 0:00:39]} 19. Qxc2 {[%emt 0:00:01]} Rxc2+ {[%emt 0:00:02]} 20. Kb1 {[%emt 0:00:02]} Rxe2 {[%emt 0:00:43]} 21. Bf3 {[%emt 0:01:31]} Rf2 {[%emt 0:00:21]} 22. Nc5 {[%emt 0:00:32]} Rxf3 {[%emt 0:01:15]} 23. Rd3 {[%emt 0:02:18]} Bc6 {[%emt 0:01:06]} 24. Bh4 {[%emt 0:00:37]} Rxh4 {[%emt 0:00:23]} 0-1

[Event "British KO-ch Pre 2019"]
[Site "London"]
[Date "2019.11.30"]
[Round "3.6"]
[White "Claridge-Hansen, William"]
[Black "Head, Louise"]
[Result "1-0"]
[ECO "A25"]
[WhiteElo "2290"]
[BlackElo "2100"]
[Annotator "NA"]
[PlyCount "67"]
[EventDate "2019.11.30"]
[EventType "k.o."]
[EventCountry "ENG"]
[SourceTitle "playchess.com"]
[Source "ChessBase"]
[SourceQuality "1"]
[TimeControl "600+5"]

1. c4 {[%emt 0:00:00]} e5 {[%emt 0:00:00]} 2. g3 {[%emt 0:00:00]} Nf6 {[%emt 0:00:00]} 3. Bg2 {[%emt 0:00:00]} Nc6 {[%emt 0:00:00]} 4. Nc3 {[%emt 0:00:02]} Bb4 {[%emt 0:00:01]} 5. Nd5 {[%emt 0:00:20]} Bc5 {[%emt 0:00:02]} 6. e3 {[%emt 0:00:13]} d6 {[%emt 0:00:07]} 7. Ne2 {[%emt 0:00:07]} Nxd5 {[%emt 0:00:11]} 8. cxd5 {[%emt 0:00:01]} Ne7 {[%emt 0:00:02]} 9. b3 {[%emt 0:00:31]} O-O {[%emt 0:00:14]} 10. O-O {[%emt 0:00:06]} Bg4 {[%emt 0:00:49]} 11. h3 {[%emt 0:00:11]} Bh5 {[%emt 0:00:01]} 12. Bb2 {[%emt 0:00:10]} Bb6 {[%emt 0:00:54]} 13. g4 {[%emt 0:01:08]} Bg6 {[%emt 0:00:04]} 14. d4 {[%emt 0:00:07]} exd4 {[%emt 0:00:38]} 15. Nxd4 {[%emt 0:00:08]} Qd7 {[%emt 0:01:18]} 16. f4 {[%emt 0:00:29]} f5 {[%emt 0:00:27]} 17. Ne6 {[%emt 0:00:57]} Bxe3+ {[%emt 0:00:36]} 18. Kh2 {[%emt 0:00:10]} Rf7 {[%emt 0:00:27]} 19. Re1 {[%emt 0:00:27]} Bb6 {[%emt 0:00:51]} 20. g5 {[%emt 0:00:16]} c6 {[%emt 0:00:24]} 21. h4 {[%emt 0:00:40]} Bf2 {[%emt 0:01:31]} 22. Rf1 {[%emt 0:01:18]} cxd5 {[%emt 0:00:41]} 23. Rxf2 {[%emt 0:00:27]} Qxe6 {[%emt 0:00:14]} 24. h5 {[%emt 0:00:11]} h6 {[%emt 0:00:30]} 25. hxg6 Qxg6 {[%emt 0:00:04]} 26. gxh6 {[%emt 0:00:48]} Qxh6+ {[%emt 0:00:08]} 27. Kg1 {[%emt 0:00:13]} Re8 {[%emt 0:00:36]} 28. Qd2 {[%emt 0:00:33]} Kf8 {[%emt 0:00:39]} 29. Re1 {[%emt 0:00:18]} Qg6 {[%emt 0:00:25]} 30. Qe3 {[%emt 0:00:50]} Rd8 {[%emt 0:00:07]} 31. Rf3 {[%emt 0:00:19]} Nc6 {[%emt 0:00:17]} 32. Rg3 {[%emt 0:00:02]} Qh6 {[%emt 0:00:03]} 33. Rh3 {[%emt 0:00:05]} d4 {[%emt 0:00:06]} 34. Qf2 {[%emt 0:00:17]} 1-0

[Event "British KO-ch Pre 2019"]
[Site "London"]
[Date "2019.11.30"]
[Round "3.7"]
[White "Toma, Katarzyna"]
[Black "Taylor, Adam C"]
[Result "0-1"]
[ECO "C77"]
[WhiteElo "2272"]
[BlackElo "2371"]
[Annotator "NA"]
[PlyCount "88"]
[EventDate "2019.11.30"]
[EventType "k.o."]
[EventCountry "ENG"]
[SourceTitle "playchess.com"]
[Source "ChessBase"]
[SourceQuality "1"]
[TimeControl "600+5"]

1. e4 {[%emt 0:00:00]} e5 {[%emt 0:00:00]} 2. Nf3 {[%emt 0:00:00]} Nc6 {[%emt 0:00:00]} 3. Bb5 {[%emt 0:00:00]} a6 {[%emt 0:00:00]} 4. Ba4 {[%emt 0:00:01]} Nf6 {[%emt 0:00:00]} 5. Qe2 {[%emt 0:00:02]} Qe7 {[%emt 0:00:32]} 6. c3 {[%emt 0:00:15]} g6 {[%emt 0:00:08]} 7. d3 {[%emt 0:00:35]} Bg7 {[%emt 0:00:02]} 8. O-O {[%emt 0:00:16]} O-O {[%emt 0:00:03]} 9. h3 {[%emt 0:00:07]} b5 {[%emt 0:00:19]} 10. Bc2 {[%emt 0:00:08]} d6 {[%emt 0:00:05]} 11. a4 {[%emt 0:00:15]} Bb7 {[%emt 0:00:23]} 12. Na3 {[%emt 0:00:24]} b4 {[%emt 0:00:22]} 13. Nc4 {[%emt 0:00:01]} a5 {[%emt 0:00:01]} 14. Ne3 {[%emt 0:01:03]} Rab8 {[%emt 0:00:55]} 15. Bb3 {[%emt 0:00:10]} Ba6 {[%emt 0:00:22]} 16. Nd5 {[%emt 0:00:38]} Nxd5 {[%emt 0:00:12]} 17. Bxd5 {[%emt 0:00:01]} Qd7 {[%emt 0:00:08]} 18. Bg5 {[%emt 0:00:31]} Ne7 {[%emt 0:00:53]} 19. Nd2 {[%emt 0:01:12]} Nxd5 {[%emt 0:00:20]} 20. exd5 {[%emt 0:00:01]} f5 {[%emt 0:00:21]} 21. c4 {[%emt 0:00:16]} h6 {[%emt 0:00:58]} 22. Bh4 {[%emt 0:00:01]} g5 {[%emt 0:00:06]} 23. Bg3 {[%emt 0:00:03]} c6 {[%emt 0:00:20]} 24. dxc6 {[%emt 0:00:20]} Qxc6 {[%emt 0:00:01]} 25. f3 {[%emt 0:00:02]} d5 {[%emt 0:00:52]} 26. Rfe1 {[%emt 0:00:14]} Rbe8 {[%emt 0:00:19]} 27. Rac1 {[%emt 0:00:37]} e4 {[%emt 0:00:43]} 28. fxe4 {[%emt 0:01:37]} dxe4 {[%emt 0:00:13]} 29. b3 {[%emt 0:01:06]} f4 {[%emt 0:00:14]} 30. Bh2 {[%emt 0:00:04]} exd3 {[%emt 0:01:10]} 31. Qxd3 {[%emt 0:00:07]} Bb7 {[%emt 0:00:04]} 32. Nf3 {[%emt 0:00:12]} Bc3 {[%emt 0:00:17]} 33. Rxe8 {[%emt 0:00:56]} Rxe8 {[%emt 0:00:01]} 34. Rf1 {[%emt 0:00:11]} Qe6 {[%emt 0:00:45]} 35. Kh1 {[%emt 0:00:14]} Be4 {[%emt 0:00:15]} 36. Qd1 {[%emt 0:00:06]} Qf5 {[%emt 0:00:46]} 37. Qd6 {[%emt 0:00:34]} Qe6 {[%emt 0:00:31]} 38. Qc5 {[%emt 0:00:36]} Bd3 {[%emt 0:00:08]} 39. Rc1 {[%emt 0:00:11]} Kh7 {[%emt 0:00:13]} 40. Bg1 {[%emt 0:00:03]} Be4 {[%emt 0:00:04]} 41. Rd1 {[%emt 0:00:05]} Bxf3 {[%emt 0:00:07]} 42. gxf3 {[%emt 0:00:01]} Qxh3+ {[%emt 0:00:02]} 43. Bh2 {[%emt 0:00:03]} Qxf3+ {[%emt 0:00:01]} 44. Kg1 {[%emt 0:00:03]} Qxd1+ {[%emt 0:00:02]} 0-1